[Event "25th Bosnjaci Open 2020"]
[Site "Bosnjaci"]
[Date "2020.01.05"]
[Round "4.12"]
[White "Stocko, Josip"]
[Black "Takac, Zvonko"]
[Result "1-0"]
[ECO "D00"]
[WhiteElo "2262"]
[BlackElo "2066"]
[Annotator "NA"]
[PlyCount "101"]
[EventDate "2020.01.03"]
[EventType "swiss"]
[EventCountry "CRO"]
[SourceTitle "playchess.com"]
[Source "ChessBase"]
[SourceQuality "1"]
[TimeControl "5400+30"]

1. d4 {[%emt 0:04:30]} Nf6 {[%emt 0:00:30]} 2. Bf4 {[%emt 0:00:30]} d5 {[%emt 0:00:30]} 3. e3 {[%emt 0:01:30]} e6 {[%emt 0:00:30]} 4. Nc3 {[%emt 0:00:30]} Bd6 {[%emt 0:00:30]} 5. Bd3 {[%emt 0:01:30]} Bxf4 {[%emt 0:01:30]} 6. exf4 {[%emt 0:03:30]} O-O {[%emt 0:01:30]} 7. Nf3 {[%emt 0:00:30]} b6 {[%emt 0:00:30]} 8. O-O {[%emt 0:08:30]} Ba6 {[%emt 0:00:30]} 9. Re1 {[%emt 0:00:30]} c5 {[%emt 0:00:30]} 10. Ne5 {[%emt 0:02:30]} cxd4 {[%emt 0:01:30]} 11. Ne2 {[%emt 0:02:30]} Bxd3 {[%emt 0:00:30]} 12. Qxd3 {[%emt 0:15:30]} Nbd7 $11 {[%emt 0:07:30]} 13. Nxd4 {[%emt 0:04:30]} Rc8 {[%emt 0:04:30]} 14. Nec6 {[%emt 0:02:30]} Qe8 {[%emt 0:02:30]} 15. Nxa7 {[%emt 0:01:30]} Rc4 {[%emt 0:03:30]} 16. Nab5 {[%emt 0:11:30]} Qb8 {[%emt 0:00:30]} 17. g3 {[%emt 0:04:30]} e5 {[%emt 0:27:30]} 18. fxe5 {[%emt 0:02:30]} Nxe5 {[%emt 0:00:00]} 19. Qf5 {[%emt 0:03:30]} Nc6 {[%emt 0:06:00]} 20. Nxc6 {[%emt 0:01:30]} Rxc6 {[%emt 0:00:00]} 21. Nd4 {[%emt 0:01:30]} Rc4 {[%emt 0:01:00]} 22. c3 {[%emt 0:00:30]} Qd6 {[%emt 0:00:30]} 23. Qe5 {[%emt 0:01:30]} Qd8 {[%emt 0:05:30]} 24. Nf5 {[%emt 0:02:30]} Re8 {[%emt 0:00:30]} 25. Qd6 {[%emt 0:00:30]} Ne4 {[%emt 0:01:30]} 26. Qxd8 {[%emt 0:01:30]} Rxd8 {[%emt 0:00:30]} 27. Rad1 {[%emt 0:01:30]} Kf8 {[%emt 0:03:30]} 28. Kg2 {[%emt 0:03:54]} Nf6 {[%emt 0:01:30]} 29. a3 {[%emt 0:00:50]} g6 {[%emt 0:01:30]} 30. Ne3 {[%emt 0:00:51]} Re4 {[%emt 0:00:30]} 31. f3 {[%emt 0:00:59]} Re6 {[%emt 0:00:30]} 32. Kf2 {[%emt 0:01:04]} h5 {[%emt 0:03:30]} 33. Nc2 {[%emt 0:01:57]} Ke7 {[%emt 0:00:30]} 34. Nb4 {[%emt 0:04:26]} Kd6 {[%emt 0:01:30]} 35. c4 {[%emt 0:03:22]} Kc5 {[%emt 0:04:30]} 36. cxd5 {[%emt 0:00:17]} Nxd5 {[%emt 0:03:17]} 37. Rxd5+ {[%emt 0:03:10]} Rxd5 {[%emt 0:00:25]} 38. Nxd5 {[%emt 0:02:40]} Kxd5 {[%emt 0:00:34]} 39. Rxe6 {[%emt 0:01:08]} fxe6 {[%emt 0:00:17]} 40. Ke3 {[%emt 0:00:24]} Kc4 {[%emt 0:00:25]} 41. Kd2 {[%emt 0:00:45]} e5 {[%emt 0:00:36]} 42. Kc2 {[%emt 0:00:51]} g5 {[%emt 0:00:18]} 43. b3+ {[%emt 0:00:31]} Kd4 {[%emt 0:00:09]} 44. Kd2 {[%emt 0:00:04]} g4 {[%emt 0:00:13]} 45. fxg4 {[%emt 0:00:32]} hxg4 {[%emt 0:00:09]} 46. a4 {[%emt 0:00:14]} Kc5 {[%emt 0:06:19]} 47. Kc3 {[%emt 0:00:27]} Kd5 {[%emt 0:00:11]} 48. b4 {[%emt 0:00:48]} Ke4 {[%emt 0:00:33]} 49. a5 {[%emt 0:00:00]} bxa5 {[%emt 0:01:01]} 50. bxa5 {[%emt 0:00:23]} Kf3 {[%emt 0:01:46]} 51. a6 {[%emt 0:00:12]} 1-0

[Event "25th Bosnjaci Open 2020"]
[Site "Bosnjaci"]
[Date "2020.01.05"]
[Round "4.14"]
[White "Sipic, Hrvoje"]
[Black "Pasalic, Adnan"]
[Result "1-0"]
[ECO "D02"]
[WhiteElo "2210"]
[BlackElo "2024"]
[Annotator "NA"]
[PlyCount "69"]
[EventDate "2020.01.03"]
[EventType "swiss"]
[EventCountry "CRO"]
[SourceTitle "playchess.com"]
[Source "ChessBase"]
[SourceQuality "1"]
[TimeControl "5400+30"]

1. Nf3 {[%emt 0:00:30]} d5 {[%emt 0:00:30]} 2. d4 {[%emt 0:00:00]} Nf6 {[%emt 0:00:00]} 3. Bf4 {[%emt 0:00:00]} e6 {[%emt 0:00:00]} 4. e3 {[%emt 0:00:30]} Be7 {[%emt 0:00:30]} 5. Nbd2 {[%emt 0:00:00]} O-O {[%emt 0:00:30]} 6. Bd3 {[%emt 0:00:00]} c5 {[%emt 0:00:30]} 7. c3 {[%emt 0:00:30]} Nbd7 {[%emt 0:01:30]} 8. Ne5 {[%emt 0:01:30]} Re8 {[%emt 0:06:30]} 9. O-O {[%emt 0:09:30]} Nf8 {[%emt 0:05:30]} 10. Bg3 {[%emt 0:15:30]} Ng6 $14 {[%emt 0:05:30]} 11. f4 {[%emt 0:01:30]} Qb6 {[%emt 0:01:30]} 12. Rb1 {[%emt 0:00:30]} Bd7 {[%emt 0:01:30]} 13. Nxd7 {[%emt 0:12:30]} Nxd7 {[%emt 0:00:00]} 14. f5 {[%emt 0:03:30]} exf5 {[%emt 0:03:00]} 15. Rxf5 {[%emt 0:01:30]} Nf6 {[%emt 0:08:30]} 16. Qf3 {[%emt 0:06:30]} Bd6 {[%emt 0:01:30]} 17. h4 {[%emt 0:07:30]} Bxg3 {[%emt 0:04:30]} 18. Qxg3 {[%emt 0:00:30]} Qe6 {[%emt 0:02:30]} 19. Re1 {[%emt 0:05:30]} cxd4 {[%emt 0:01:30]} 20. cxd4 {[%emt 0:00:30]} Ne4 {[%emt 0:01:30]} 21. Bxe4 {[%emt 0:02:30]} dxe4 {[%emt 0:00:30]} 22. Ref1 {[%emt 0:00:30]} Qxa2 {[%emt 0:06:30]} 23. h5 {[%emt 0:03:30]} Nh8 {[%emt 0:02:30]} 24. h6 {[%emt 0:03:30]} Ng6 {[%emt 0:01:30]} 25. hxg7 {[%emt 0:02:30]} Kxg7 {[%emt 0:00:30]} 26. d5 {[%emt 0:07:15]} Rf8 {[%emt 0:04:30]} 27. Nxe4 {[%emt 0:00:49]} Qxb2 {[%emt 0:07:30]} 28. Qc7 {[%emt 0:03:40]} Nh8 {[%emt 0:00:30]} 29. Ng5 {[%emt 0:01:53]} Kg8 {[%emt 0:07:30]} 30. Ne4 {[%emt 0:05:12]} Rac8 {[%emt 0:04:30]} 31. Qg3+ {[%emt 0:00:57]} Ng6 {[%emt 0:00:00]} 32. Nf6+ {[%emt 0:00:27]} Kg7 {[%emt 0:00:00]} 33. Qh3 {[%emt 0:02:28]} h6 {[%emt 0:02:30]} 34. Ng4 {[%emt 0:00:31]} Kg8 {[%emt 0:03:23]} 35. Qxh6 {[%emt 0:00:31]} 1-0

[Event "25th Bosnjaci Open 2020"]
[Site "Bosnjaci"]
[Date "2020.01.06"]
[Round "5.1"]
[White "Zaja, Ivan"]
[Black "Fercec, Nenad"]
[Result "1/2-1/2"]
[ECO "A50"]
[WhiteElo "2447"]
[BlackElo "2423"]
[Annotator "RC"]
[PlyCount "84"]
[EventDate "2020.01.03"]
[EventType "swiss"]
[EventCountry "CRO"]
[SourceTitle "playchess.com"]
[Source "ChessBase"]
[SourceQuality "1"]
[TimeControl "5400+30"]

1. d4 {[%emt 0:00:30]} Nf6 {[%emt 0:05:30]} 2. c4 {[%emt 0:00:00]} b6 {[%emt 0:00:00]} 3. f3 {[%emt 0:00:00]} Nc6 {[%emt 0:02:00]} 4. Nc3 {[%emt 0:00:30]} e5 {[%emt 0:01:30]} 5. d5 {[%emt 0:00:00]} Ne7 {[%emt 0:00:30]} 6. g4 {[%emt 0:00:00]} Ng6 {[%emt 0:36:30]} 7. h4 {[%emt 0:01:30]} Be7 {[%emt 0:03:30]} 8. h5 {[%emt 0:02:30]} Nf8 {[%emt 0:03:30]} 9. e3 {[%emt 0:17:30]} h6 {[%emt 0:11:30]} 10. Bd3 {[%emt 0:00:30]} c6 {[%emt 0:05:30]} 11. Nge2 {[%emt 0:06:30]} Bb7 {[%emt 0:00:30]} 12. Bc2 {[%emt 0:07:30]} cxd5 {[%emt 0:01:30]} 13. cxd5 {[%emt 0:00:30]} d6 {[%emt 0:00:00]} 14. Ng3 {[%emt 0:02:30]} N8h7 {[%emt 0:05:53]} 15. Qd3 {[%emt 0:20:30]} a6 {[%emt 0:03:38]} 16. Nf5 {[%emt 0:02:30]} Kf8 {[%emt 0:00:07]} 17. e4 {[%emt 0:11:30]} Nd7 {[%emt 0:01:28]} 18. Nxe7 {[%emt 0:00:00]} Qxe7 {[%emt 0:00:51]} 19. Ne2 {[%emt 0:02:00]} Ng5 {[%emt 0:01:24]} 20. Ng3 {[%emt 0:00:30]} Qf6 {[%emt 0:00:59]} 21. Nf5 {[%emt 0:05:07]} g6 {[%emt 0:07:58]} 22. hxg6 {[%emt 0:03:19]} fxg6 {[%emt 0:00:06]} 23. Bxg5 {[%emt 0:01:51]} hxg5 {[%emt 0:00:06]} 24. Rxh8+ {[%emt 0:00:14]} Qxh8 {[%emt 0:00:06]} 25. Nxd6 {[%emt 0:00:05]} Qh4+ {[%emt 0:00:12]} 26. Kd2 {[%emt 0:00:45]} Qf2+ {[%emt 0:00:07]} 27. Qe2 {[%emt 0:03:43]} Qd4+ {[%emt 0:00:33]} 28. Kc1 {[%emt 0:00:31]} Nc5 {[%emt 0:00:37]} 29. a4 {[%emt 0:03:55]} Ke7 {[%emt 0:01:01]} 30. Nxb7 {[%emt 0:00:03]} Nxb7 {[%emt 0:00:02]} 31. Ra3 {[%emt 0:01:22]} Nc5 {[%emt 0:04:28]} 32. Qd2 {[%emt 0:01:11]} Qg1+ {[%emt 0:00:09]} 33. Bd1 {[%emt 0:00:57]} Rc8 {[%emt 0:02:28]} 34. Kb1 {[%emt 0:01:11]} a5 {[%emt 0:00:10]} 35. Qxg5+ {[%emt 0:00:45]} Kf7 {[%emt 0:00:15]} 36. Qd2 {[%emt 0:00:22]} Rh8 {[%emt 0:00:13]} 37. Re3 {[%emt 0:02:15]} Rh1 {[%emt 0:00:24]} 38. Kc2 {[%emt 0:00:22]} Na6 {[%emt 0:00:50]} 39. Kc1 {[%emt 0:01:58]} Nb4 {[%emt 0:00:21]} 40. d6 {[%emt 0:01:03]} Na2+ {[%emt 0:00:25]} 41. Kb1 {[%emt 0:01:00]} Nb4 {[%emt 0:00:05]} 42. Kc1 {[%emt 0:00:14]} Na2+ {[%emt 0:00:05]} 1/2-1/2

[Event "25th Bosnjaci Open 2020"]
[Site "Bosnjaci"]
[Date "2020.01.06"]
[Round "5.2"]
[White "Rogulj, Branko"]
[Black "Muratovic, Efim"]
[Result "0-1"]
[ECO "B46"]
[WhiteElo "2386"]
[BlackElo "2394"]
[Annotator "ChessBase"]
[PlyCount "110"]
[EventDate "2020.01.03"]
[EventType "swiss"]
[EventCountry "CRO"]
[SourceTitle "playchess.com"]
[Source "ChessBase"]
[SourceQuality "1"]
[TimeControl "5400+30"]

1. e4 {[%emt 0:00:30]} c5 {[%emt 0:00:30]} 2. Nc3 {[%emt 0:00:00]} e6 {[%emt 0:00:30]} 3. Nf3 {[%emt 0:01:00]} a6 {[%emt 0:02:30]} 4. d4 {[%emt 0:01:30]} cxd4 {[%emt 0:00:30]} 5. Nxd4 {[%emt 0:00:30]} Nc6 {[%emt 0:02:30]} 6. g3 {[%emt 0:00:30]} Qf6 {[%emt 0:08:30]} 7. Nxc6 {[%emt 0:05:30]} dxc6 {[%emt 0:00:30]} 8. Bg2 {[%emt 0:00:30]} Bc5 {[%emt 0:01:30]} 9. O-O {[%emt 0:00:30]} e5 {[%emt 0:00:30]} 10. Na4 {[%emt 0:02:30]} Ba7 {[%emt 0:02:30]} 11. Be3 {[%emt 0:05:30]} Bxe3 {[%emt 0:10:30]} 12. fxe3 {[%emt 0:00:00]} Qg5 {[%emt 0:05:30]} 13. Qd3 {[%emt 0:09:00]} Bg4 {[%emt 0:17:30]} 14. Nc5 {[%emt 0:16:30]} Nf6 {[%emt 0:13:30]} 15. h4 {[%emt 0:09:30]} Qh6 {[%emt 0:02:30]} 16. Qd6 {[%emt 0:00:30]} Qxe3+ {[%emt 0:05:30]} 17. Kh2 {[%emt 0:01:30]} Rd8 {[%emt 0:00:30]} 18. Qxe5+ {[%emt 0:00:30]} Be6 {[%emt 0:00:30]} 19. Kh1 {[%emt 0:10:30]} Ng4 {[%emt 0:02:30]} 20. Qc3 {[%emt 0:03:30]} Qxc3 {[%emt 0:02:27]} 21. bxc3 {[%emt 0:00:00]} Rd2 {[%emt 0:03:37]} 22. Nxb7 {[%emt 0:01:00]} Ke7 {[%emt 0:00:53]} 23. Na5 {[%emt 0:02:30]} Ne3 {[%emt 0:05:38]} 24. Rg1 {[%emt 0:00:30]} Rc8 {[%emt 0:03:11]} 25. c4 {[%emt 0:07:30]} Bg4 {[%emt 0:00:22]} 26. Nb3 {[%emt 0:00:30]} Rxc2 {[%emt 0:02:27]} 27. Nd4 {[%emt 0:01:30]} Rxc4 {[%emt 0:00:41]} 28. Nf5+ {[%emt 0:00:00]} Nxf5 {[%emt 0:00:11]} 29. exf5 {[%emt 0:00:00]} Bxf5 {[%emt 0:00:11]} 30. Rge1+ {[%emt 0:00:30]} Be6 {[%emt 0:01:01]} 31. a4 {[%emt 0:00:30]} Rb8 {[%emt 0:00:20]} 32. Re3 {[%emt 0:00:30]} Rbb4 {[%emt 0:01:58]} 33. a5 {[%emt 0:00:30]} Kd6 {[%emt 0:00:32]} 34. Bf1 {[%emt 0:00:30]} Bd5+ {[%emt 0:01:10]} 35. Kg1 {[%emt 0:00:30]} Ra4 {[%emt 0:00:49]} 36. Rd1 {[%emt 0:02:46]} Rc5 {[%emt 0:00:47]} 37. Bxa6 {[%emt 0:00:11]} Rcxa5 {[%emt 0:00:12]} 38. Bd3 {[%emt 0:01:08]} Ra1 {[%emt 0:00:13]} 39. Ree1 {[%emt 0:00:00]} Rxd1 {[%emt 0:00:57]} 40. Rxd1 {[%emt 0:00:30]} Ra3 {[%emt 0:00:39]} 41. Kf2 {[%emt 0:00:10]} Ke5 {[%emt 0:00:14]} 42. Be2 {[%emt 0:00:38]} g6 {[%emt 0:01:12]} 43. Rb1 {[%emt 0:00:32]} h5 {[%emt 0:00:23]} 44. Rb8 {[%emt 0:01:15]} Kd4 {[%emt 0:00:23]} 45. Rb4+ {[%emt 0:00:20]} Ke5 {[%emt 0:00:09]} 46. Rb8 {[%emt 0:00:11]} c5 {[%emt 0:00:14]} 47. Rb1 {[%emt 0:00:52]} c4 {[%emt 0:00:41]} 48. Rc1 {[%emt 0:00:22]} Kd4 {[%emt 0:00:21]} 49. Rd1+ {[%emt 0:00:11]} Kc5 {[%emt 0:00:06]} 50. g4 {[%emt 0:00:23]} hxg4 {[%emt 0:00:33]} 51. Bxg4 {[%emt 0:00:02]} Ra2+ {[%emt 0:00:56]} 52. Kg3 {[%emt 0:01:16]} f5 {[%emt 0:00:50]} 53. Bh3 {[%emt 0:01:54]} Ra3+ {[%emt 0:00:06]} 54. Kh2 {[%emt 0:00:06]} c3 {[%emt 0:00:30]} 55. h5 {[%emt 0:00:07]} Bf3 {[%emt 0:01:01]} 0-1

[Event "25th Bosnjaci Open 2020"]
[Site "Bosnjaci"]
[Date "2020.01.06"]
[Round "5.3"]
[White "Plenkovic, Zdenko"]
[Black "Klasan, Vladimir"]
[Result "0-1"]
[ECO "B30"]
[WhiteElo "2348"]
[BlackElo "2342"]
[Annotator "ChessBase"]
[PlyCount "90"]
[EventDate "2020.01.03"]
[EventType "swiss"]
[EventCountry "CRO"]
[SourceTitle "playchess.com"]
[Source "ChessBase"]
[SourceQuality "1"]
[TimeControl "5400+30"]

1. e4 {[%emt 0:00:30]} c5 {[%emt 0:00:30]} 2. Nf3 {[%emt 0:00:00]} Nc6 {[%emt 0:00:30]} 3. Nc3 {[%emt 0:00:00]} e5 {[%emt 0:03:30]} 4. Bc4 {[%emt 0:01:30]} g6 {[%emt 0:00:30]} 5. d3 {[%emt 0:01:30]} h6 {[%emt 0:01:30]} 6. Nd2 {[%emt 0:21:30]} Bg7 {[%emt 0:00:30]} 7. Nf1 {[%emt 0:00:00]} Nge7 {[%emt 0:01:30]} 8. Ne3 {[%emt 0:03:00]} O-O {[%emt 0:01:30]} 9. h4 {[%emt 0:03:30]} d6 {[%emt 0:17:30]} 10. h5 {[%emt 0:03:30]} g5 {[%emt 0:00:30]} 11. g4 {[%emt 0:02:30]} Be6 {[%emt 0:07:30]} 12. Bd2 {[%emt 0:06:30]} a6 {[%emt 0:02:30]} 13. a4 {[%emt 0:02:30]} Rb8 {[%emt 0:04:30]} 14. O-O {[%emt 0:02:30]} Nd4 {[%emt 0:06:30]} 15. a5 {[%emt 0:03:30]} Ndc6 {[%emt 0:07:30]} 16. Ncd5 {[%emt 0:00:30]} Bxd5 {[%emt 0:04:30]} 17. Bxd5 {[%emt 0:04:30]} Nxd5 {[%emt 0:10:30]} 18. Nxd5 {[%emt 0:00:30]} Ne7 {[%emt 0:00:30]} 19. Nxe7+ {[%emt 0:03:30]} Qxe7 {[%emt 0:00:30]} 20. c4 {[%emt 0:00:00]} b5 {[%emt 0:07:30]} 21. axb6 {[%emt 0:00:00]} Rxb6 {[%emt 0:00:30]} 22. Bc3 {[%emt 0:00:30]} Qb7 {[%emt 0:01:19]} 23. Qf3 {[%emt 0:00:30]} Ra8 {[%emt 0:01:50]} 24. Ra5 {[%emt 0:01:30]} Qc7 {[%emt 0:02:17]} 25. Rfa1 {[%emt 0:00:30]} Qb7 {[%emt 0:00:20]} 26. R1a2 {[%emt 0:01:30]} Qc6 {[%emt 0:02:24]} 27. Qd1 {[%emt 0:01:30]} Qc8 {[%emt 0:02:04]} 28. Kg2 {[%emt 0:00:30]} Bf6 {[%emt 0:01:04]} 29. Kg3 {[%emt 0:01:30]} Qb7 {[%emt 0:01:12]} 30. R5a4 {[%emt 0:04:30]} Kg7 {[%emt 0:01:22]} 31. Qa1 {[%emt 0:01:30]} Kf8 {[%emt 0:01:31]} 32. R2a3 {[%emt 0:00:30]} Kg7 {[%emt 0:01:26]} 33. Ra2 {[%emt 0:01:30]} Kg8 {[%emt 0:02:58]} 34. R4a3 {[%emt 0:00:30]} Qc6 {[%emt 0:00:47]} 35. Ba5 {[%emt 0:04:30]} Rbb8 {[%emt 0:00:53]} 36. Qd1 {[%emt 0:00:30]} Qb7 {[%emt 0:02:41]} 37. Qa4 {[%emt 0:02:30]} Be7 {[%emt 0:00:59]} 38. b4 {[%emt 0:03:30]} cxb4 {[%emt 0:00:07]} 39. Rb3 {[%emt 0:00:00]} Qc8 {[%emt 0:02:06]} 40. Rxb4 {[%emt 0:03:47]} Rxb4 {[%emt 0:00:07]} 41. Bxb4 {[%emt 0:00:07]} Rb8 {[%emt 0:00:53]} 42. Bd2 {[%emt 0:01:34]} Rb1 {[%emt 0:00:48]} 43. f3 {[%emt 0:00:17]} Qc5 {[%emt 0:00:54]} 44. Bc3 {[%emt 0:03:08]} Qg1+ {[%emt 0:00:17]} 45. Rg2 {[%emt 0:00:13]} Qh1 {[%emt 0:00:05]} 0-1

[Event "25th Bosnjaci Open 2020"]
[Site "Bosnjaci"]
[Date "2020.01.06"]
[Round "5.4"]
[White "Bobanac, Miro"]
[Black "Runic, Zoran"]
[Result "0-1"]
[ECO "A37"]
[WhiteElo "2218"]
[BlackElo "2326"]
[Annotator "ChessBase"]
[PlyCount "140"]
[EventDate "2020.01.03"]
[EventType "swiss"]
[EventCountry "CRO"]
[SourceTitle "playchess.com"]
[Source "ChessBase"]
[SourceQuality "1"]
[TimeControl "5400+30"]

1. Nf3 {[%emt 0:00:30]} c5 {[%emt 0:00:30]} 2. c4 {[%emt 0:00:30]} d6 {[%emt 0:00:30]} 3. g3 {[%emt 0:01:30]} e5 {[%emt 0:00:30]} 4. Nc3 {[%emt 0:00:30]} g6 {[%emt 0:00:30]} 5. Bg2 {[%emt 0:00:30]} Bg7 {[%emt 0:00:00]} 6. O-O {[%emt 0:01:30]} Ne7 {[%emt 0:00:00]} 7. d3 {[%emt 0:02:30]} Nbc6 {[%emt 0:00:30]} 8. Bd2 {[%emt 0:01:30]} O-O {[%emt 0:01:30]} 9. a3 {[%emt 0:01:30]} h6 {[%emt 0:02:30]} 10. Rb1 {[%emt 0:02:30]} a5 {[%emt 0:00:30]} 11. Nd5 {[%emt 0:06:30]} Nxd5 {[%emt 0:00:30]} 12. cxd5 {[%emt 0:00:30]} Ne7 {[%emt 0:00:30]} 13. e4 {[%emt 0:00:00]} b5 {[%emt 0:07:30]} 14. Ne1 {[%emt 0:04:00]} b4 {[%emt 0:01:30]} 15. f4 {[%emt 0:07:30]} exf4 {[%emt 0:00:30]} 16. Bxf4 {[%emt 0:06:30]} g5 {[%emt 0:04:30]} 17. Be3 {[%emt 0:00:30]} Ng6 {[%emt 0:00:00]} 18. d4 {[%emt 0:05:30]} cxd4 {[%emt 0:06:00]} 19. Bxd4 {[%emt 0:00:00]} Bxd4+ {[%emt 0:00:30]} 20. Qxd4 {[%emt 0:00:00]} Rb8 {[%emt 0:00:30]} 21. Nf3 {[%emt 0:10:30]} Bg4 {[%emt 0:06:30]} 22. Nd2 {[%emt 0:00:00]} Ne5 {[%emt 0:02:30]} 23. Rbc1 {[%emt 0:02:00]} Be2 {[%emt 0:13:30]} 24. Rf5 {[%emt 0:06:30]} Qb6 {[%emt 0:00:30]} 25. Qxb6 {[%emt 0:02:30]} Rxb6 {[%emt 0:00:30]} 26. axb4 {[%emt 0:07:30]} Rxb4 {[%emt 0:00:30]} 27. b3 {[%emt 0:01:30]} Kg7 {[%emt 0:04:30]} 28. h3 {[%emt 0:02:30]} Rd4 {[%emt 0:00:30]} 29. Rc2 {[%emt 0:00:30]} Rb8 {[%emt 0:05:30]} 30. Rf2 {[%emt 0:01:30]} Bd1 {[%emt 0:01:30]} 31. Ra2 {[%emt 0:02:30]} g4 {[%emt 0:07:30]} 32. hxg4 {[%emt 0:04:36]} Nxg4 {[%emt 0:00:30]} 33. Rf4 {[%emt 0:02:59]} Ne5 {[%emt 0:02:30]} 34. Rf2 {[%emt 0:00:15]} Bxb3 {[%emt 0:00:30]} 35. Rxa5 {[%emt 0:02:48]} Bd1 {[%emt 0:08:30]} 36. Ra2 {[%emt 0:02:16]} Rd3 {[%emt 0:02:30]} 37. Nf1 {[%emt 0:06:35]} Rb1 {[%emt 0:03:47]} 38. Bh3 {[%emt 0:03:08]} Bg4 {[%emt 0:05:37]} 39. Kg2 {[%emt 0:00:58]} Bf3+ {[%emt 0:00:14]} 40. Kg1 {[%emt 0:03:26]} Bxe4 {[%emt 0:00:13]} 41. Bg2 {[%emt 0:00:12]} Bxd5 {[%emt 0:03:08]} 42. Bxd5 {[%emt 0:00:37]} Rxd5 {[%emt 0:00:18]} 43. Kg2 {[%emt 0:00:02]} Rdd1 {[%emt 0:00:29]} 44. Rad2 {[%emt 0:00:49]} Ng4 {[%emt 0:00:30]} 45. Rxd1 {[%emt 0:00:54]} Rxd1 {[%emt 0:00:30]} 46. Ra2 {[%emt 0:00:05]} Rd3 {[%emt 0:01:14]} 47. Nd2 {[%emt 0:00:10]} d5 {[%emt 0:02:26]} 48. Nf3 {[%emt 0:00:21]} h5 {[%emt 0:00:53]} 49. Ra6 {[%emt 0:01:08]} Nf6 {[%emt 0:01:56]} 50. Ra7 {[%emt 0:00:33]} Re3 {[%emt 0:01:23]} 51. Ng5 {[%emt 0:00:13]} Ne4 {[%emt 0:01:02]} 52. Nxf7 {[%emt 0:01:02]} Rxg3+ {[%emt 0:00:30]} 53. Kh2 {[%emt 0:00:02]} Kf6 {[%emt 0:00:29]} 54. Nd6 {[%emt 0:00:38]} Rg4 {[%emt 0:00:16]} 55. Nb5 {[%emt 0:01:03]} Ng5 {[%emt 0:00:26]} 56. Nc3 {[%emt 0:00:36]} d4 {[%emt 0:00:32]} 57. Nd5+ {[%emt 0:00:30]} Ke5 {[%emt 0:00:34]} 58. Ra5 {[%emt 0:00:06]} Nf3+ {[%emt 0:01:28]} 59. Kh3 {[%emt 0:00:08]} Rg1 {[%emt 0:00:31]} 60. Nb4+ {[%emt 0:01:21]} Kf4 {[%emt 0:00:47]} 61. Nd5+ {[%emt 0:00:24]} Kg5 {[%emt 0:00:32]} 62. Ne3+ {[%emt 0:00:28]} Kg6 {[%emt 0:00:13]} 63. Ng2 {[%emt 0:00:20]} Ng5+ {[%emt 0:00:47]} 64. Kh2 {[%emt 0:00:44]} Rf1 {[%emt 0:00:49]} 65. Nh4+ {[%emt 0:00:55]} Kf6 {[%emt 0:00:01]} 66. Kg2 {[%emt 0:00:00]} Rf4 {[%emt 0:00:15]} 67. Ra6+ {[%emt 0:00:00]} Kf7 {[%emt 0:01:14]} 68. Ng6 {[%emt 0:00:08]} Re4 {[%emt 0:00:19]} 69. Kg3 {[%emt 0:00:34]} Ne6 {[%emt 0:00:52]} 70. Nh4 {[%emt 0:00:26]} Rg4+ {[%emt 0:00:03]} 0-1